[Event "Masterklassen 2025"]
[Site "Uppsala, Sweden"]
[Date "2025.07.01"]
[Round "4.12"]
[White "Tornberg, Carlos"]
[Black "Darnell, Anton"]
[Result "1-0"]
[TimeControl "90 min for 40 move + 30 min with an increment of 30 sec starting move 1"]
[WhiteFideId "1733478"]
[BlackFideId "1720244"]
[WhiteElo "2233"]
[BlackElo "2007"]

1. e4 {[%clk 01:30:58]} {[%emt 00:00:02]} e5 {[%clk 01:30:40]} {[%emt
00:00:21]} 2. Nf3 {[%clk 01:31:22]} {[%emt 00:00:06]} Nc6 {[%clk 01:31:02]}
{[%emt 00:00:07]} 3. Nc3 {[%clk 01:31:48]} {[%emt 00:00:05]} Nf6 {[%clk
01:30:41]} {[%emt 00:00:50]} 4. h3 {[%clk 01:32:13]} {[%emt 00:00:05]} h6
{[%clk 01:21:18]} {[%emt 00:09:53]} 5. Bb5 {[%clk 01:20:43]} {[%emt 00:12:01]}
Bd6 {[%clk 01:20:57]} {[%emt 00:00:50]} 6. d4 {[%clk 01:17:53]} {[%emt
00:03:21]} Nxd4 {[%clk 01:15:03]} {[%emt 00:06:23]} 7. Nxd4 {[%clk 01:18:02]}
{[%emt 00:00:21]} exd4 {[%clk 01:15:24]} {[%emt 00:00:09]} 8. Qxd4 {[%clk
01:18:12]} Qe7 {[%clk 01:14:42]} {[%emt 00:01:33]} 9. f4 {[%clk 01:07:23]}
{[%emt 00:11:19]} c6 {[%clk 01:03:24]} {[%emt 00:11:47]} 10. Be2 {[%clk
01:03:20]} {[%emt 00:04:34]} Bc5 {[%clk 01:00:22]} {[%emt 00:03:31]} 11. Qd3
{[%clk 01:02:09]} {[%emt 00:01:41]} d6 {[%clk 00:55:36]} {[%emt 00:05:16]} 12.
Be3 {[%clk 00:55:22]} {[%emt 00:07:17]} Bxe3 {[%clk 00:43:59]} {[%emt
00:12:07]} 13. Qxe3 {[%clk 00:55:51]} {[%emt 00:00:02]} Bf5 {[%clk 00:37:18]}
{[%emt 00:07:11]} 14. Bd3 {[%clk 00:48:13]} {[%emt 00:08:07]} d5 {[%clk
00:26:05]} {[%emt 00:11:44]} 15. e5 {[%clk 00:47:28]} {[%emt 00:01:14]} Bxd3
{[%clk 00:25:57]} {[%emt 00:00:39]} 16. cxd3 {[%clk 00:46:02]} {[%emt
00:01:56]} Nd7 {[%clk 00:24:02]} {[%emt 00:02:24]} 17. O-O-O {[%clk 00:42:54]}
{[%emt 00:03:39]} b5 {[%clk 00:20:20]} {[%emt 00:04:11]} 18. d4 {[%clk
00:37:17]} {[%emt 00:06:07]} Nb6 {[%clk 00:20:23]} {[%emt 00:00:27]} 19. g4
{[%clk 00:33:34]} {[%emt 00:04:13]} a5 {[%clk 00:19:44]} {[%emt 00:01:09]} 20.
f5 {[%clk 00:26:05]} {[%emt 00:07:59]} a4 {[%clk 00:12:39]} {[%emt 00:07:36]}
21. Rd3 {[%clk 00:21:36]} {[%emt 00:04:58]} Nc4 {[%clk 00:09:42]} {[%emt
00:03:27]} 22. Qf2 {[%clk 00:17:14]} {[%emt 00:04:52]} b4 {[%clk 00:06:58]}
{[%emt 00:03:14]} 23. f6 {[%clk 00:14:58]} {[%emt 00:02:47]} Qf8 {[%clk
00:06:18]} {[%emt 00:01:10]} 24. fxg7 {[%clk 00:13:10]} {[%emt 00:02:18]} Qxg7
{[%clk 00:06:40]} {[%emt 00:00:08]} 25. Ne2 {[%clk 00:12:43]} {[%emt 00:00:56]}
b3 {[%clk 00:06:01]} {[%emt 00:01:10]} 26. a3 {[%clk 00:11:54]} {[%emt
00:01:18]} O-O {[%clk 00:04:39]} {[%emt 00:01:53]} 27. Nf4 {[%clk 00:10:38]}
{[%emt 00:01:46]} Rae8 {[%clk 00:04:22]} {[%emt 00:00:47]} 28. h4 {[%clk
00:09:27]} {[%emt 00:01:40]} f6 {[%clk 00:03:54]} {[%emt 00:00:58]} 29. e6
{[%clk 00:08:50]} {[%emt 00:01:08]} Kh8 {[%clk 00:03:24]} {[%emt 00:01:00]} 30.
Rg1 {[%clk 00:08:17]} {[%emt 00:01:02]} Nd6 {[%clk 00:03:09]} {[%emt 00:00:45]}
31. Qe3 {[%clk 00:06:32]} {[%emt 00:02:15]} Ne4 {[%clk 00:02:53]} {[%emt
00:00:46]} 32. h5 {[%clk 00:06:05]} {[%emt 00:00:58]} Kh7 {[%clk 00:02:42]}
{[%emt 00:00:41]} 33. Ng6 {[%clk 00:06:10]} {[%emt 00:00:24]} Rxe6 {[%clk
00:01:23]} {[%emt 00:01:50]} 34. Nxf8+ {[%clk 00:06:21]} {[%emt 00:00:19]} Qxf8
{[%clk 00:01:52]} 35. Qf4 {[%clk 00:06:21]} {[%emt 00:00:30]} Qe8 {[%clk
00:01:42]} {[%emt 00:00:39]} 36. Re3 {[%clk 00:04:56]} {[%emt 00:01:55]} c5
{[%clk 00:00:57]} {[%emt 00:01:16]} 37. dxc5 {[%clk 00:04:42]} {[%emt
00:00:44]} Qc6 {[%clk 00:00:50]} {[%emt 00:00:37]} 38. Kb1 {[%clk 00:03:39]}
{[%emt 00:01:33]} d4 {[%clk 00:00:47]} {[%emt 00:00:32]} 39. Qf5+ {[%clk
00:03:14]} {[%emt 00:00:55]} Kh8 {[%clk 00:00:58]} {[%emt 00:00:20]} 40. Rd3
{[%clk 00:02:37]} {[%emt 00:01:07]} Re5 {[%clk 00:00:41]} {[%emt 00:00:47]} 41.
Qg6 {[%clk 00:28:35]} {[%emt 00:04:31]} Qxc5 {[%clk 00:24:00]} {[%emt
00:07:11]} 42. Rc1 {[%clk 00:24:18]} {[%emt 00:04:47]} Nc3+ {[%clk 00:24:11]}
{[%emt 00:00:18]} 43. bxc3 {[%clk 00:23:59]} {[%emt 00:00:49]} b2 {[%clk
00:22:27]} {[%emt 00:02:15]} 44. Rf1 {[%clk 00:21:14]} {[%emt 00:03:15]} Qxa3
{[%clk 00:13:56]} {[%emt 00:09:01]} 45. Qxh6+ {[%clk 00:20:14]} {[%emt
00:01:30]} Kg8 {[%clk 00:14:25]} {[%emt 00:00:02]} 46. Qg6+ {[%clk 00:20:36]}
{[%emt 00:00:07]} Kh8 {[%clk 00:13:55]} {[%emt 00:01:00]} 47. Qxf6+ {[%clk
00:21:00]} {[%emt 00:00:06]} Kg8 {[%clk 00:13:21]} {[%emt 00:01:04]} 48. Qf7+
{[%clk 00:21:10]} {[%emt 00:00:20]} 1-0

[Event "Masterklassen 2025"]
[Site "Uppsala, Sweden"]
[Date "2025.07.01"]
[Round "4.13"]
[White "Stanley, Mikael"]
[Black "Ostensson, Julia"]
[Result "0-1"]
[TimeControl "90 min for 40 move + 30 min with an increment of 30 sec starting move 1"]
[WhiteFideId "1703730"]
[BlackFideId "1747703"]
[WhiteElo "2150"]
[BlackElo "2005"]

1. e4 {[%clk 01:30:14]} {[%emt 00:00:45]} d6 {[%clk 01:30:53]} {[%emt
00:00:07]} 2. d4 {[%clk 01:30:29]} {[%emt 00:00:15]} Nf6 {[%clk 01:31:18]}
{[%emt 00:00:05]} 3. Nc3 {[%clk 01:30:48]} {[%emt 00:00:12]} e5 {[%clk
01:31:42]} {[%emt 00:00:05]} 4. Nf3 {[%clk 01:30:05]} {[%emt 00:01:13]} Nbd7
{[%clk 01:32:07]} {[%emt 00:00:05]} 5. Bc4 {[%clk 01:29:23]} {[%emt 00:01:12]}
Be7 {[%clk 01:32:32]} {[%emt 00:00:05]} 6. O-O {[%clk 01:28:18]} {[%emt
00:01:35]} c6 {[%clk 01:32:47]} {[%emt 00:00:16]} 7. a4 {[%clk 01:27:27]}
{[%emt 00:01:21]} O-O {[%clk 01:31:18]} {[%emt 00:01:58]} 8. Ba2 {[%clk
01:25:21]} {[%emt 00:02:36]} exd4 {[%clk 01:26:46]} {[%emt 00:05:03]} 9. Qxd4
{[%clk 01:23:07]} {[%emt 00:02:44]} Nc5 {[%clk 01:18:35]} {[%emt 00:08:41]} 10.
b4 {[%clk 01:18:11]} {[%emt 00:05:26]} Ne6 {[%clk 01:17:12]} {[%emt 00:01:53]}
11. Qc4 {[%clk 01:15:21]} {[%emt 00:03:19]} a5 {[%clk 01:11:18]} {[%emt
00:06:24]} 12. Ba3 {[%clk 01:08:52]} {[%emt 00:07:00]} Nf4 {[%clk 01:06:57]}
{[%emt 00:04:51]} 13. bxa5 {[%clk 00:53:11]} {[%emt 00:16:10]} d5 {[%clk
00:44:35]} {[%emt 00:22:53]} 14. Bxe7 {[%clk 00:52:25]} {[%emt 00:01:15]} Qxe7
{[%clk 00:44:56]} {[%emt 00:00:09]} 15. exd5 {[%clk 00:52:27]} {[%emt
00:00:28]} N6xd5 {[%clk 00:40:54]} {[%emt 00:04:31]} 16. Rfe1 {[%clk 00:48:17]}
{[%emt 00:04:40]} Qf6 {[%clk 00:28:56]} {[%emt 00:12:29]} 17. Nxd5 {[%clk
00:41:03]} {[%emt 00:07:45]} Nxd5 {[%clk 00:26:26]} {[%emt 00:03:00]} 18. Qc5
{[%clk 00:38:21]} {[%emt 00:03:12]} Qc3 {[%clk 00:24:39]} {[%emt 00:02:16]} 19.
Qxc3 {[%clk 00:33:02]} {[%emt 00:05:49]} Nxc3 {[%clk 00:25:04]} {[%emt
00:00:06]} 20. Re5 {[%clk 00:26:10]} {[%emt 00:07:21]} Nxa2 {[%clk 00:21:33]}
{[%emt 00:04:01]} 21. Rxa2 {[%clk 00:26:39]} {[%emt 00:00:01]} f6 {[%clk
00:21:19]} {[%emt 00:00:45]} 22. Rc5 {[%clk 00:26:08]} {[%emt 00:01:00]} Rd8
{[%clk 00:21:24]} {[%emt 00:00:25]} 23. Kf1 {[%clk 00:23:07]} {[%emt 00:03:31]}
Rd5 {[%clk 00:19:50]} {[%emt 00:02:04]} 24. Rxd5 {[%clk 00:23:20]} {[%emt
00:00:18]} cxd5 {[%clk 00:20:16]} {[%emt 00:00:04]} 25. Nd4 {[%clk 00:15:48]}
{[%emt 00:08:02]} Rxa5 {[%clk 00:20:38]} {[%emt 00:00:07]} 26. Nb3 {[%clk
00:15:09]} {[%emt 00:01:09]} Ra6 {[%clk 00:20:30]} {[%emt 00:00:38]} 27. a5
{[%clk 00:14:47]} {[%emt 00:00:52]} Kf7 {[%clk 00:16:43]} {[%emt 00:04:17]} 28.
Ke2 {[%clk 00:14:44]} {[%emt 00:00:33]} Ke7 {[%clk 00:05:41]} {[%emt 00:11:32]}
29. Kd3 {[%clk 00:14:14]} {[%emt 00:01:00]} Kd6 {[%clk 00:04:57]} {[%emt
00:01:14]} 30. Kd4 {[%clk 00:13:23]} {[%emt 00:01:21]} Rc6 {[%clk 00:05:07]}
{[%emt 00:00:21]} 31. Nd2 {[%clk 00:12:02]} {[%emt 00:01:50]} Bf5 {[%clk
00:05:21]} {[%emt 00:00:17]} 32. c3 {[%clk 00:11:48]} {[%emt 00:00:44]} Kc7
{[%clk 00:03:16]} {[%emt 00:02:34]} 33. h4 {[%clk 00:08:08]} {[%emt 00:04:09]}
Ra6 {[%clk 00:01:21]} {[%emt 00:02:26]} 34. Nb3 {[%clk 00:07:37]} {[%emt
00:01:02]} Kd6 {[%clk 00:00:34]} {[%emt 00:01:16]} 35. Nc5 {[%clk 00:07:07]}
{[%emt 00:01:00]} Ra7 {[%clk 00:01:01]} {[%emt 00:00:04]} 36. Rb2 {[%clk
00:07:15]} {[%emt 00:00:22]} Kc7 {[%clk 00:00:58]} {[%emt 00:00:33]} 37. Kxd5
{[%clk 00:06:58]} {[%emt 00:00:46]} Bc8 {[%clk 00:00:31]} {[%emt 00:00:58]} 38.
Rb5 {[%clk 00:06:46]} {[%emt 00:00:41]} Bd7 {[%clk 00:00:35]} {[%emt 00:00:26]}
39. Rb6 {[%clk 00:06:07]} {[%emt 00:01:09]} Bc6+ {[%clk 00:00:57]} {[%emt
00:00:09]} 40. Kd4 {[%clk 00:00:59]} {[%emt 00:05:37]} Rxa5 {[%clk 00:01:18]}
{[%emt 00:00:09]} 41. Rb2 {[%clk 00:01:14]} {[%emt 00:00:14]} Bxg2 {[%clk
00:24:41]} {[%emt 00:07:08]} 42. Ne6+ {[%clk 00:31:10]} {[%emt 00:00:34]} Kc6
{[%clk 00:22:08]} {[%emt 00:03:02]} 43. Nxg7 {[%clk 00:30:00]} {[%emt
00:01:41]} Rd5+ {[%clk 00:15:14]} {[%emt 00:07:24]} 44. Ke3 {[%clk 00:29:07]}
{[%emt 00:01:23]} Rc5 {[%clk 00:10:25]} {[%emt 00:05:20]} 45. Rb3 {[%clk
00:25:21]} {[%emt 00:04:16]} b5 {[%clk 00:07:15]} {[%emt 00:03:39]} 46. Ra3
{[%clk 00:20:50]} {[%emt 00:05:01]} Kd6 {[%clk 00:04:22]} {[%emt 00:03:22]} 47.
Kf4 {[%clk 00:20:08]} {[%emt 00:01:12]} Bh3 {[%clk 00:02:55]} {[%emt 00:01:58]}
48. h5 {[%clk 00:13:20]} {[%emt 00:07:17]} Bd7 {[%clk 00:02:17]} {[%emt
00:01:09]} 49. h6 {[%clk 00:07:39]} {[%emt 00:06:11]} Rc4+ {[%clk 00:02:26]}
{[%emt 00:00:21]} 50. Kf3 {[%clk 00:05:11]} {[%emt 00:02:58]} Rh4 {[%clk
00:02:31]} {[%emt 00:00:25]} 51. Ra6+ {[%clk 00:04:54]} {[%emt 00:00:47]} Ke5
{[%clk 00:00:41]} {[%emt 00:02:20]} 52. Ra7 {[%clk 00:03:25]} {[%emt 00:01:59]}
Bc6+ {[%clk 00:01:07]} {[%emt 00:00:04]} 53. Kg3 {[%clk 00:03:51]} {[%emt
00:00:04]} Rxh6 {[%clk 00:01:03]} {[%emt 00:00:34]} 54. f4+ {[%clk 00:04:02]}
{[%emt 00:00:19]} Ke4 {[%clk 00:00:39]} {[%emt 00:00:54]} 55. f5 {[%clk
00:03:47]} {[%emt 00:00:45]} Rh1 {[%clk 00:00:55]} {[%emt 00:00:14]} 56. Ne6
{[%clk 00:03:13]} {[%emt 00:01:04]} Bd5 {[%clk 00:00:45]} {[%emt 00:00:41]} 57.
Nf4 {[%clk 00:02:45]} {[%emt 00:00:58]} Bc4 {[%clk 00:00:51]} {[%emt 00:00:23]}
58. Re7+ {[%clk 00:02:57]} {[%emt 00:00:18]} Kxf5 {[%clk 00:01:03]} {[%emt
00:00:18]} 59. Nh3 {[%clk 00:03:08]} {[%emt 00:00:19]} Rc1 {[%clk 00:01:18]}
{[%emt 00:00:16]} 60. Re3 {[%clk 00:03:25]} {[%emt 00:00:12]} Rd1 {[%clk
00:00:35]} {[%emt 00:01:13]} 61. Nf2 {[%clk 00:03:16]} {[%emt 00:00:39]} Rg1+
{[%clk 00:00:49]} {[%emt 00:00:46]} 62. Kh2 {[%clk 00:03:32]} {[%emt 00:00:13]}
Rf1 {[%clk 00:00:58]} {[%emt 00:00:21]} 63. Kg3 {[%clk 00:03:14]} {[%emt
00:00:49]} h5 {[%clk 00:00:37]} {[%emt 00:00:50]} 64. Nh3 {[%clk 00:02:10]}
{[%emt 00:01:33]} Bd5 {[%clk 00:01:00]} {[%emt 00:00:08]} 65. Rd3 {[%clk
00:01:33]} {[%emt 00:01:07]} Be4 {[%clk 00:01:20]} {[%emt 00:00:10]} 66. Re3
{[%clk 00:01:49]} {[%emt 00:00:14]} Ke5 {[%clk 00:00:55]} {[%emt 00:00:55]} 67.
Kh4 {[%clk 00:01:33]} {[%emt 00:00:46]} Rh1 {[%clk 00:00:45]} {[%emt 00:00:40]}
68. Kg3 {[%clk 00:01:31]} {[%emt 00:00:33]} Rf1 {[%clk 00:01:08]} {[%emt
00:00:07]} 69. Re2 {[%clk 00:00:46]} {[%emt 00:01:15]} Rf3+ {[%clk 00:01:25]}
{[%emt 00:00:13]} 70. Kh4 {[%clk 00:01:06]} {[%emt 00:00:09]} Rxc3 {[%clk
00:01:41]} {[%emt 00:00:14]} 71. Nf2 {[%clk 00:01:02]} {[%emt 00:00:34]} f5
{[%clk 00:02:05]} {[%emt 00:00:06]} 72. Kxh5 {[%clk 00:01:25]} {[%emt
00:00:07]} b4 {[%clk 00:02:16]} {[%emt 00:00:20]} 73. Nd1 {[%clk 00:01:09]}
{[%emt 00:00:46]} Rc1 {[%clk 00:02:11]} {[%emt 00:00:34]} 74. Nb2 {[%clk
00:01:01]} {[%emt 00:00:39]} Kd4 {[%clk 00:02:21]} {[%emt 00:00:20]} 75. Kg5
{[%clk 00:00:52]} {[%emt 00:00:38]} b3 {[%clk 00:02:17]} {[%emt 00:00:34]} 76.
Kf4 {[%clk 00:01:07]} {[%emt 00:00:15]} Rc2 {[%clk 00:02:18]} {[%emt 00:00:30]}
0-1

[Event "Masterklassen 2025"]
[Site "Uppsala, Sweden"]
[Date "2025.07.01"]
[Round "4.14"]
[White "Lind, Jan-Olov"]
[Black "Sergelenbaatar, Khaschuluu"]
[Result "1-0"]
[TimeControl "90 min for 40 move + 30 min with an increment of 30 sec starting move 1"]
[WhiteFideId "1701193"]
[BlackFideId "4920929"]
[WhiteElo "2057"]
[BlackElo "1996"]

1. e4 {[%clk 01:30:55]} {[%emt 00:00:04]} c6 {[%clk 01:29:58]} {[%emt
00:00:50]} 2. d4 {[%clk 01:30:40]} {[%emt 00:00:58]} d5 {[%clk 01:30:21]}
{[%emt 00:00:07]} 3. exd5 {[%clk 01:31:02]} {[%emt 00:00:09]} cxd5 {[%clk
01:30:44]} {[%emt 00:00:06]} 4. c4 {[%clk 01:31:27]} {[%emt 00:00:06]} Nf6
{[%clk 01:31:08]} {[%emt 00:00:05]} 5. Nc3 {[%clk 01:31:52]} {[%emt 00:00:05]}
g6 {[%clk 01:31:32]} {[%emt 00:00:07]} 6. Qb3 {[%clk 01:31:34]} {[%emt
00:00:48]} Bg7 {[%clk 01:31:51]} {[%emt 00:00:08]} 7. cxd5 {[%clk 01:31:55]}
{[%emt 00:00:11]} O-O {[%clk 01:32:14]} {[%emt 00:00:07]} 8. Be2 {[%clk
01:32:17]} {[%emt 00:00:08]} Nbd7 {[%clk 01:32:36]} {[%emt 00:00:08]} 9. Bf3
{[%clk 01:32:29]} {[%emt 00:00:17]} Nb6 {[%clk 01:33:00]} {[%emt 00:00:07]} 10.
Nge2 {[%clk 01:32:35]} {[%emt 00:00:24]} a5 {[%clk 01:33:20]} {[%emt 00:00:10]}
11. a4 {[%clk 01:31:16]} {[%emt 00:01:49]} Bf5 {[%clk 01:33:42]} {[%emt
00:00:09]} 12. O-O {[%clk 01:29:22]} {[%emt 00:02:23]} Bd3 {[%clk 01:34:07]}
{[%emt 00:00:05]} 13. d6 {[%clk 01:25:42]} {[%emt 00:04:10]} Qxd6 {[%clk
01:27:48]} {[%emt 00:06:49]} 14. Bxb7 {[%clk 01:24:49]} {[%emt 00:01:22]} Rab8
{[%clk 00:49:05]} {[%emt 00:39:14]} 15. Bf3 {[%clk 01:20:56]} {[%emt 00:04:22]}
Bc4 {[%clk 00:38:05]} {[%emt 00:11:31]} 16. Qc2 {[%clk 01:11:00]} {[%emt
00:10:25]} Nbd5 {[%clk 00:38:03]} {[%emt 00:00:33]} 17. Nxd5 {[%clk 01:09:53]}
{[%emt 00:01:37]} Bxd5 {[%clk 00:18:20]} {[%emt 00:20:13]} 18. Bf4 {[%clk
01:09:06]} {[%emt 00:01:17]} Qb6 {[%clk 00:11:56]} {[%emt 00:06:54]} 19. Bxd5
{[%clk 01:03:31]} {[%emt 00:06:05]} Nxd5 {[%clk 00:12:20]} {[%emt 00:00:06]} 20.
Bxb8 {[%clk 01:03:51]} {[%emt 00:00:11]} Rxb8 {[%clk 00:12:45]} {[%emt
00:00:05]} 21. Rab1 {[%clk 00:59:14]} {[%emt 00:05:06]} h5 {[%clk 00:10:01]}
{[%emt 00:03:13]} 22. Qe4 {[%clk 00:47:09]} {[%emt 00:12:35]} Nf6 {[%clk
00:10:08]} {[%emt 00:00:24]} 23. Qf3 {[%clk 00:47:09]} {[%emt 00:00:30]} g5
{[%clk 00:10:08]} {[%emt 00:00:30]} 24. Rfc1 {[%clk 00:43:01]} {[%emt
00:04:38]} g4 {[%clk 00:10:08]} {[%emt 00:00:29]} 25. Qc6 {[%clk 00:41:32]}
{[%emt 00:02:00]} Qb4 {[%clk 00:10:30]} {[%emt 00:00:07]} 26. Qc4 {[%clk
00:36:53]} {[%emt 00:05:09]} Qd2 {[%clk 00:09:27]} {[%emt 00:01:33]} 27. Rc2
{[%clk 00:36:02]} {[%emt 00:01:22]} Qg5 {[%clk 00:09:42]} {[%emt 00:00:15]} 28.
Qc7 {[%clk 00:31:07]} {[%emt 00:05:26]} Rb3 {[%clk 00:08:29]} {[%emt 00:01:42]}
29. Qc8+ {[%clk 00:30:04]} {[%emt 00:01:33]} Kh7 {[%clk 00:08:52]} {[%emt
00:00:07]} 30. Qc4 {[%clk 00:28:31]} {[%emt 00:02:03]} Rb4 {[%clk 00:09:05]}
{[%emt 00:00:17]} 31. Qxf7 {[%clk 00:28:21]} {[%emt 00:00:40]} h4 {[%clk
00:07:37]} {[%emt 00:01:58]} 32. Qxe7 {[%clk 00:25:02]} {[%emt 00:03:49]} Qf5
{[%clk 00:07:56]} {[%emt 00:00:11]} 33. Rbc1 {[%clk 00:25:02]} {[%emt
00:00:30]} h3 {[%clk 00:07:39]} {[%emt 00:00:47]} 34. Qe5 {[%clk 00:23:01]}
{[%emt 00:02:32]} Qd3 {[%clk 00:06:33]} {[%emt 00:01:36]} 35. Nf4 {[%clk
00:20:59]} {[%emt 00:02:32]} Qxd4 {[%clk 00:03:44]} {[%emt 00:03:19]} 36. Qf5+
{[%clk 00:21:15]} {[%emt 00:00:13]} Kh8 {[%clk 00:02:41]} {[%emt 00:01:32]} 37.
Rc8+ {[%clk 00:21:24]} {[%emt 00:00:21]} Qd8 {[%clk 00:02:55]} {[%emt
00:00:17]} 38. Rxd8+ {[%clk 00:21:46]} {[%emt 00:00:08]} Ng8 {[%clk 00:03:20]}
{[%emt 00:00:05]} 39. Ng6+ {[%clk 00:22:02]} {[%emt 00:00:14]} Kh7 {[%clk
00:03:44]} {[%emt 00:00:06]} 40. Nf8+ {[%clk 00:22:16]} {[%emt 00:00:16]} Kh8
{[%clk 00:04:06]} {[%emt 00:00:07]} 41. Qh7# {[%clk 00:22:40]} {[%emt
00:00:07]} 1-0

[Event "Masterklassen 2025"]
[Site "Uppsala, Sweden"]
[Date "2025.07.01"]
[Round "4.15"]
[White "Schriever-Abeln, Marius"]
[Black "Willstedt, Lukas"]
[Result "0-1"]
[TimeControl "90 min for 40 move + 30 min with an increment of 30 sec starting move 1"]
[WhiteFideId "1752650"]
[BlackFideId "1751913"]
[WhiteElo "2052"]
[BlackElo "2055"]

1. Nf3 {[%clk 01:30:55]} {[%emt 00:00:04]} d5 {[%clk 01:30:48]} {[%emt
00:00:12]} 2. g3 {[%clk 01:31:20]} {[%emt 00:00:06]} Nd7 {[%clk 01:31:10]}
{[%emt 00:00:08]} 3. d4 {[%clk 01:31:17]} {[%emt 00:00:32]} Nb6 {[%clk
01:31:34]} {[%emt 00:00:06]} 4. Bg2 {[%clk 01:30:17]} {[%emt 00:01:31]} Bf5
{[%clk 01:31:52]} {[%emt 00:00:11]} 5. O-O {[%clk 01:28:48]} {[%emt 00:01:59]}
e6 {[%clk 01:31:54]} {[%emt 00:00:29]} 6. Nbd2 {[%clk 01:22:37]} {[%emt
00:06:40]} Nf6 {[%clk 01:31:14]} {[%emt 00:01:10]} 7. b3 {[%clk 01:13:49]}
{[%emt 00:09:19]} Bb4 {[%clk 01:27:07]} {[%emt 00:04:36]} 8. Bb2 {[%clk
01:10:46]} {[%emt 00:03:33]} O-O {[%clk 01:25:43]} {[%emt 00:01:54]} 9. c3
{[%clk 01:05:39]} {[%emt 00:05:37]} Be7 {[%clk 01:25:48]} {[%emt 00:00:25]} 10.
Nh4 {[%clk 00:56:21]} {[%emt 00:09:48]} Bg4 {[%clk 01:22:11]} {[%emt 00:04:07]}
11. h3 {[%clk 00:54:52]} {[%emt 00:01:59]} Bh5 {[%clk 01:22:34]} {[%emt
00:00:07]} 12. g4 {[%clk 00:50:29]} {[%emt 00:04:53]} Nfd7 {[%clk 01:19:19]}
{[%emt 00:03:45]} 13. gxh5 {[%clk 00:42:37]} {[%emt 00:08:22]} Bxh4 {[%clk
01:18:52]} {[%emt 00:00:57]} 14. e4 {[%clk 00:42:02]} {[%emt 00:01:05]} dxe4
{[%clk 01:17:53]} {[%emt 00:01:30]} 15. Nxe4 {[%clk 00:41:42]} {[%emt
00:00:49]} h6 {[%clk 01:11:55]} {[%emt 00:06:27]} 16. c4 {[%clk 00:40:05]}
{[%emt 00:02:08]} c6 {[%clk 01:07:40]} {[%emt 00:04:45]} 17. Qe2 {[%clk
00:35:48]} {[%emt 00:04:47]} Be7 {[%clk 00:57:02]} {[%emt 00:11:08]} 18. Rad1
{[%clk 00:33:07]} {[%emt 00:03:11]} Qc7 {[%clk 00:52:27]} {[%emt 00:05:05]} 19.
d5 {[%clk 00:19:21]} {[%emt 00:14:16]} cxd5 {[%clk 00:42:27]} {[%emt 00:10:30]}
20. Qg4 {[%clk 00:18:06]} {[%emt 00:01:45]} e5 {[%clk 00:41:16]} {[%emt
00:01:41]} 21. cxd5 {[%clk 00:17:29]} {[%emt 00:01:07]} f5 {[%clk 00:38:43]}
{[%emt 00:03:03]} 22. Qg6 {[%clk 00:15:00]} {[%emt 00:02:59]} Bh4 {[%clk
00:34:47]} {[%emt 00:04:25]} 23. Rc1 {[%clk 00:09:40]} {[%emt 00:05:51]} Qd8
{[%clk 00:29:13]} {[%emt 00:06:04]} 24. Qe6+ {[%clk 00:09:12]} {[%emt
00:00:58]} Kh7 {[%clk 00:29:17]} {[%emt 00:00:26]} 25. Ba3 {[%clk 00:04:26]}
{[%emt 00:05:17]} fxe4 {[%clk 00:26:21]} {[%emt 00:03:25]} 26. Bxe4+ {[%clk
00:04:30]} {[%emt 00:00:26]} Kh8 {[%clk 00:26:32]} {[%emt 00:00:18]} 27. Bxf8
{[%clk 00:04:02]} {[%emt 00:00:59]} Qg5+ {[%clk 00:25:29]} {[%emt 00:01:33]} 28.
Qg4 {[%clk 00:03:29]} {[%emt 00:01:03]} Rxf8 {[%clk 00:25:35]} {[%emt
00:00:24]} 29. Rc7 {[%clk 00:02:53]} {[%emt 00:01:07]} Nf6 {[%clk 00:07:59]}
{[%emt 00:18:05]} 30. Qxg5 {[%clk 00:02:50]} {[%emt 00:00:33]} Bxg5 {[%clk
00:08:08]} {[%emt 00:00:21]} 31. Bg6 {[%clk 00:02:48]} {[%emt 00:00:32]} Nfxd5
{[%clk 00:07:38]} {[%emt 00:01:00]} 32. Rxb7 {[%clk 00:03:02]} {[%emt
00:00:16]} a5 {[%clk 00:07:46]} {[%emt 00:00:22]} 33. Ra7 {[%clk 00:02:41]}
{[%emt 00:00:52]} Bd2 {[%clk 00:07:12]} {[%emt 00:01:03]} 34. Rd1 {[%clk
00:01:53]} {[%emt 00:01:19]} Bc3 {[%clk 00:07:14]} {[%emt 00:00:26]} 35. Be4
{[%clk 00:01:38]} {[%emt 00:00:45]} Nf4 {[%clk 00:05:46]} {[%emt 00:01:59]} 36.
Kh2 {[%clk 00:01:07]} {[%emt 00:01:02]} Nxh5 {[%clk 00:04:11]} {[%emt
00:02:04]} 37. f3 {[%clk 00:01:15]} {[%emt 00:00:23]} Nf6 {[%clk 00:04:20]}
{[%emt 00:00:20]} 38. Rd6 {[%clk 00:00:58]} {[%emt 00:00:48]} Nxe4 {[%clk
00:03:25]} {[%emt 00:01:24]} 39. fxe4 {[%clk 00:00:59]} {[%emt 00:00:30]} Nc8
{[%clk 00:03:20]} {[%emt 00:00:35]} 40. Ra8 {[%clk 00:00:53]} {[%emt 00:00:35]}
Nxd6 {[%clk 00:03:43]} {[%emt 00:00:07]} 41. Rxf8+ {[%clk 00:01:19]} {[%emt
00:00:04]} Kh7 {[%clk 00:04:06]} {[%emt 00:00:07]} 42. Rf3 {[%clk 00:29:18]}
{[%emt 00:02:30]} Bd4 {[%clk 00:33:35]} {[%emt 00:01:01]} 43. a3 {[%clk
00:29:12]} {[%emt 00:00:36]} Nxe4 {[%clk 00:32:20]} {[%emt 00:01:46]} 44. b4
{[%clk 00:29:16]} {[%emt 00:00:26]} axb4 {[%clk 00:31:50]} {[%emt 00:01:01]} 45.
axb4 {[%clk 00:29:44]} {[%emt 00:00:01]} Nd6 {[%clk 00:31:48]} {[%emt
00:00:31]} 46. Rb3 {[%clk 00:29:12]} {[%emt 00:01:03]} Nb5 {[%clk 00:32:09]}
{[%emt 00:00:08]} 47. Kg3 {[%clk 00:29:08]} {[%emt 00:00:34]} Kg6 {[%clk
00:32:10]} {[%emt 00:00:30]} 48. Kf3 {[%clk 00:28:03]} {[%emt 00:01:35]} Kf5
{[%clk 00:32:30]} {[%emt 00:00:09]} 49. Ke2 {[%clk 00:27:40]} {[%emt 00:00:54]}
e4 {[%clk 00:32:43]} {[%emt 00:00:16]} 50. Ke1 {[%clk 00:26:32]} {[%emt
00:01:39]} e3 {[%clk 00:32:02]} {[%emt 00:01:11]} 51. Ke2 {[%clk 00:26:45]}
{[%emt 00:00:17]} Ke4 {[%clk 00:32:27]} {[%emt 00:00:05]} 52. h4 {[%clk
00:27:01]} {[%emt 00:00:15]} g5 {[%clk 00:31:53]} {[%emt 00:01:03]} 0-1